[Event "*** Titled Tuesday Blitz"]
[Site "Chess.com"]
[Date "2020.04.28"]
[Round "2"]
[White "Hadza_3"]
[Black "harkerchess"]
[Result "1-0"]
[WhiteElo "2371"]
[BlackElo "2005"]
[TimeControl "180+1"]
[EndTime "10:15:44 PDT"]
[Termination "Hadza_3 won by resignation"]

1. e4 {[%clk 0:03:00.9]} 1... e5 {[%clk 0:02:59.4]} 2. Nc3 {[%clk 0:03:00.5]}
2... Nf6 {[%clk 0:02:58.6]} 3. f4 {[%clk 0:02:58.7]} 3... d6 {[%clk 0:02:58.6]}
4. Nf3 {[%clk 0:02:57.9]} 4... Nc6 {[%clk 0:02:58.1]} 5. Bb5 {[%clk 0:02:56.9]}
5... Bg4 {[%clk 0:02:56]} 6. h3 {[%clk 0:02:56.1]} 6... Bxf3 {[%clk 0:02:55.8]}
7. Qxf3 {[%clk 0:02:57]} 7... a6 {[%clk 0:02:54.8]} 8. Bxc6+ {[%clk 0:02:57.4]}
8... bxc6 {[%clk 0:02:54]} 9. O-O {[%clk 0:02:58.3]} 9... Be7 {[%clk 0:02:52.2]}
10. d3 {[%clk 0:02:58.2]} 10... O-O {[%clk 0:02:51.4]} 11. b3 {[%clk 0:02:56.9]}
11... exf4 {[%clk 0:02:46.1]} 12. Bxf4 {[%clk 0:02:57.8]} 12... Qd7 {[%clk
0:02:43.3]} 13. a4 {[%clk 0:02:53.9]} 13... Ne8 {[%clk 0:02:37.8]} 14. Rae1
{[%clk 0:02:52.3]} 14... Bf6 {[%clk 0:02:36.9]} 15. Ne2 {[%clk 0:02:52.7]} 15...
d5 {[%clk 0:02:35.4]} 16. e5 {[%clk 0:02:52.4]} 16... Bh4 {[%clk 0:02:31.7]} 17.
g3 {[%clk 0:02:47.7]} 17... Be7 {[%clk 0:02:30.3]} 18. Kh2 {[%clk 0:02:46]}
18... f6 {[%clk 0:02:28.8]} 19. d4 {[%clk 0:02:39.1]} 19... fxe5 {[%clk
0:02:27.8]} 20. dxe5 {[%clk 0:02:40]} 20... Qf5 {[%clk 0:02:22.2]} 21. Nd4
{[%clk 0:02:38.3]} 21... Qg6 {[%clk 0:02:21.6]} 22. Qc3 {[%clk 0:02:26]} 22...
c5 {[%clk 0:02:19.5]} 23. Qf3 {[%clk 0:02:19.4]} 23... c6 {[%clk 0:02:14.7]} 24.
Ne2 {[%clk 0:02:11.5]} 24... Qxc2 {[%clk 0:02:12.6]} 25. Qg4 {[%clk 0:02:10.7]}
25... Qxb3 {[%clk 0:02:07.6]} 26. Qe6+ {[%clk 0:02:08.9]} 26... Kh8 {[%clk
0:02:05.6]} 27. Qxe7 {[%clk 0:02:07.8]} 27... Rg8 {[%clk 0:02:04.5]} 28. Qxc5
{[%clk 0:02:02.5]} 28... Qxa4 {[%clk 0:02:02.7]} 29. Nd4 {[%clk 0:02:00.4]}
29... Nc7 {[%clk 0:01:57.2]} 30. Ra1 {[%clk 0:01:46.2]} 30... Qc4 {[%clk
0:01:48.5]} 31. Qxc4 {[%clk 0:01:42.7]} 31... dxc4 {[%clk 0:01:49.4]} 32. Rfc1
{[%clk 0:01:42.4]} 32... Nd5 {[%clk 0:01:48.4]} 33. Rxc4 {[%clk 0:01:41.2]}
33... Rgb8 {[%clk 0:01:43.3]} 34. h4 {[%clk 0:01:36.4]} 34... Rb2+ {[%clk
0:01:42.6]} 35. Kh3 {[%clk 0:01:35.5]} 35... Nxf4+ {[%clk 0:01:34.7]} 36. gxf4
{[%clk 0:01:36.4]} 36... h6 {[%clk 0:01:33.1]} 37. Rxc6 {[%clk 0:01:35.3]} 37...
Rb4 {[%clk 0:01:27.6]} 38. Ne6 {[%clk 0:01:33.2]} 38... Rb3+ {[%clk 0:01:26.1]}
39. Kg4 {[%clk 0:01:32.8]} 39... Kh7 {[%clk 0:01:21.1]} 40. Raxa6 {[%clk
0:01:30.7]} 40... Rab8 {[%clk 0:01:17.3]} 41. Ra7 {[%clk 0:01:30.6]} 41... R8b7
{[%clk 0:01:14.2]} 42. Rxb7 {[%clk 0:01:30.6]} 42... Rxb7 {[%clk 0:01:15]} 43.
Rc7 {[%clk 0:01:31.2]} 43... Rxc7 {[%clk 0:01:13.7]} 44. Nxc7 {[%clk 0:01:32.1]}
1-0

[Event "*** Titled Tuesday Blitz"]
[Site "Chess.com"]
[Date "2020.04.28"]
[Round "2"]
[White "GM_Levan_Pantsulaia"]
[Black "Keks2017"]
[Result "1/2-1/2"]
[WhiteElo "2808"]
[BlackElo "2425"]
[TimeControl "180+1"]
[EndTime "10:15:49 PDT"]
[Termination "Game drawn by repetition"]

1. Nf3 {[%clk 0:02:56.3]} 1... Nf6 {[%clk 0:02:58.5]} 2. g3 {[%clk 0:02:57.2]}
2... g6 {[%clk 0:02:58.1]} 3. b3 {[%clk 0:02:55.7]} 3... Bg7 {[%clk 0:02:58.1]}
4. Bb2 {[%clk 0:02:55.4]} 4... O-O {[%clk 0:02:58.1]} 5. Bg2 {[%clk 0:02:54.4]}
5... d6 {[%clk 0:02:58]} 6. d4 {[%clk 0:02:53.5]} 6... a5 {[%clk 0:02:57.6]} 7.
O-O {[%clk 0:02:22.3]} 7... a4 {[%clk 0:02:57.1]} 8. b4 {[%clk 0:02:21.7]} 8...
c6 {[%clk 0:02:54.2]} 9. a3 {[%clk 0:02:20.9]} 9... b5 {[%clk 0:02:52.8]} 10.
Nbd2 {[%clk 0:02:19.6]} 10... d5 {[%clk 0:02:52.5]} 11. Ne5 {[%clk 0:02:17.3]}
11... Nfd7 {[%clk 0:02:51.4]} 12. e4 {[%clk 0:02:12]} 12... e6 {[%clk
0:02:50.1]} 13. h4 {[%clk 0:01:58.1]} 13... Nf6 {[%clk 0:02:45]} 14. Qe2 {[%clk
0:01:53]} 14... Bb7 {[%clk 0:02:44.4]} 15. Rad1 {[%clk 0:01:48.6]} 15... Nbd7
{[%clk 0:02:43.6]} 16. f4 {[%clk 0:01:47.3]} 16... Nb6 {[%clk 0:02:39.7]} 17. c3
{[%clk 0:01:40.2]} 17... Qc7 {[%clk 0:02:33.1]} 18. Bc1 {[%clk 0:01:39.9]} 18...
Rae8 {[%clk 0:02:31.1]} 19. Kh2 {[%clk 0:01:39.1]} 19... Nfd7 {[%clk 0:02:30.3]}
20. Nd3 {[%clk 0:01:34.6]} 20... f5 {[%clk 0:02:25.4]} 21. e5 {[%clk 0:01:30.7]}
21... h5 {[%clk 0:02:23.2]} 22. Nf3 {[%clk 0:01:30.6]} 22... Kf7 {[%clk
0:02:19.8]} 23. Ng5+ {[%clk 0:01:30.4]} 23... Ke7 {[%clk 0:02:19.7]} 24. Nc5
{[%clk 0:01:16.3]} 24... Nxc5 {[%clk 0:02:17.8]} 25. dxc5 {[%clk 0:01:16.9]}
25... Nc4 {[%clk 0:02:17.1]} 26. Rd4 {[%clk 0:01:16.9]} 26... Bh6 {[%clk
0:02:13.3]} 27. Nh7 {[%clk 0:01:09.2]} 27... Rh8 {[%clk 0:02:08.7]} 28. Nf6
{[%clk 0:01:09.5]} 28... Ref8 {[%clk 0:02:06.8]} 29. Rfd1 {[%clk 0:01:06.3]}
29... Bc8 {[%clk 0:02:03.9]} 30. Rxc4 {[%clk 0:01:05.7]} 30... bxc4 {[%clk
0:02:03.1]} 31. Be3 {[%clk 0:01:06]} 31... Ba6 {[%clk 0:01:56.8]} 32. Bd4 {[%clk
0:01:04.5]} 32... Bb5 {[%clk 0:01:56.6]} 33. Re1 {[%clk 0:01:04.2]} 33... Kd8
{[%clk 0:01:53.7]} 34. Bf3 {[%clk 0:01:04.5]} 34... Bg7 {[%clk 0:01:52.2]} 35.
Kg2 {[%clk 0:01:03.9]} 35... Kc8 {[%clk 0:01:52.1]} 36. Qe3 {[%clk 0:01:03.6]}
36... Kb7 {[%clk 0:01:51.7]} 37. Bd1 {[%clk 0:01:03.5]} 37... Rf7 {[%clk
0:01:51]} 38. Bc2 {[%clk 0:01:03.5]} 38... Rff8 {[%clk 0:01:49.4]} 39. Qd2
{[%clk 0:01:02.5]} 39... Ra8 {[%clk 0:01:48.8]} 40. Re2 {[%clk 0:01:01]} 40...
Ra7 {[%clk 0:01:48.7]} 41. Re1 {[%clk 0:01:01.2]} 41... Raa8 {[%clk 0:01:48.7]}
42. Re2 {[%clk 0:01:01.4]} 42... Ra7 {[%clk 0:01:48.8]} 43. Re1 {[%clk 0:01:01]}
43... Raa8 {[%clk 0:01:48.7]} 1/2-1/2

[Event "*** Titled Tuesday Blitz"]
[Site "Chess.com"]
[Date "2020.04.28"]
[Round "2"]
[White "MPGM"]
[Black "MariaFominykh"]
[Result "1/2-1/2"]
[WhiteElo "2529"]
[BlackElo "2323"]
[TimeControl "180+1"]
[EndTime "10:15:49 PDT"]
[Termination "Game drawn by repetition"]

1. e3 {[%clk 0:03:00.9]} 1... Nf6 {[%clk 0:02:59.1]} 2. Nf3 {[%clk 0:03:00.2]}
2... g6 {[%clk 0:02:59]} 3. b4 {[%clk 0:02:59.6]} 3... Bg7 {[%clk 0:02:59.7]} 4.
Bb2 {[%clk 0:03:00.1]} 4... O-O {[%clk 0:02:59.9]} 5. c4 {[%clk 0:02:59.6]} 5...
d6 {[%clk 0:02:59.3]} 6. Be2 {[%clk 0:02:58.2]} 6... e5 {[%clk 0:02:59.4]} 7. d3
{[%clk 0:02:56.1]} 7... b6 {[%clk 0:02:50.1]} 8. O-O {[%clk 0:02:54.6]} 8... Bb7
{[%clk 0:02:50.2]} 9. Nc3 {[%clk 0:02:51]} 9... Nbd7 {[%clk 0:02:49.1]} 10. Nd2
{[%clk 0:02:46.2]} 10... a5 {[%clk 0:02:42]} 11. b5 {[%clk 0:02:45.7]} 11... Nc5
{[%clk 0:02:40.1]} 12. Qc2 {[%clk 0:02:40.7]} 12... Ne8 {[%clk 0:02:31.2]} 13.
Bf3 {[%clk 0:02:36.3]} 13... Bxf3 {[%clk 0:02:24.5]} 14. Nxf3 {[%clk 0:02:37.2]}
14... f5 {[%clk 0:02:18.4]} 15. d4 {[%clk 0:02:31.6]} 15... e4 {[%clk
0:01:59.3]} 16. dxc5 {[%clk 0:02:18.6]} 16... exf3 {[%clk 0:01:59]} 17. gxf3
{[%clk 0:02:19.1]} 17... Qg5+ {[%clk 0:01:47.4]} 18. Kh1 {[%clk 0:02:18.4]}
18... Qh5 {[%clk 0:01:43.8]} 19. Qe2 {[%clk 0:02:00.8]} 19... dxc5 {[%clk
0:01:42.2]} 20. Rfe1 {[%clk 0:01:56.9]} 20... Be5 {[%clk 0:01:41.4]} 21. f4
{[%clk 0:01:56]} 21... Qxe2 {[%clk 0:01:38.1]} 22. Rxe2 {[%clk 0:01:56]} 22...
Bxc3 {[%clk 0:01:34.7]} 23. Bxc3 {[%clk 0:01:56.9]} 23... Nd6 {[%clk 0:01:34.7]}
24. Rd1 {[%clk 0:01:40.8]} 24... Rf7 {[%clk 0:01:31]} 25. Red2 {[%clk
0:01:36.4]} 25... Nxc4 {[%clk 0:01:17.7]} 26. Rd8+ {[%clk 0:01:34.7]} 26... Rxd8
{[%clk 0:01:06.9]} 27. Rxd8+ {[%clk 0:01:35.6]} 27... Rf8 {[%clk 0:01:07.1]} 28.
Rd7 {[%clk 0:01:35.8]} 28... Rf7 {[%clk 0:00:54.1]} 29. Rd8+ {[%clk 0:01:31.7]}
29... Rf8 {[%clk 0:00:53.7]} 30. Rd7 {[%clk 0:01:22.6]} 30... Rf7 {[%clk
0:00:50.8]} 31. Rd8+ {[%clk 0:01:22.7]} 1/2-1/2

[Event "*** Titled Tuesday Blitz"]
[Site "Chess.com"]
[Date "2020.04.28"]
[Round "2"]
[White "Keranke"]
[Black "Benjoneliere44"]
[Result "1-0"]
[WhiteElo "2766"]
[BlackElo "2508"]
[TimeControl "180+1"]
[EndTime "10:15:53 PDT"]
[Termination "Keranke won by resignation"]

1. d4 {[%clk 0:03:00.9]} 1... d6 {[%clk 0:02:59.4]} 2. c4 {[%clk 0:03:01.8]}
2... e5 {[%clk 0:02:58.5]} 3. Nf3 {[%clk 0:03:02.3]} 3... e4 {[%clk 0:02:56.8]}
4. Ng5 {[%clk 0:03:02.4]} 4... f5 {[%clk 0:02:56.3]} 5. Nc3 {[%clk 0:03:00]}
5... Nf6 {[%clk 0:02:56]} 6. d5 {[%clk 0:02:59.1]} 6... Be7 {[%clk 0:02:50.5]}
7. f3 {[%clk 0:02:58.7]} 7... exf3 {[%clk 0:02:41]} 8. exf3 {[%clk 0:02:57.7]}
8... O-O {[%clk 0:02:41.4]} 9. Bd3 {[%clk 0:02:57.5]} 9... Na6 {[%clk
0:02:36.4]} 10. O-O {[%clk 0:02:56.3]} 10... Nc5 {[%clk 0:02:35.7]} 11. Bc2
{[%clk 0:02:55.8]} 11... a5 {[%clk 0:02:34.9]} 12. Re1 {[%clk 0:02:50.6]} 12...
c6 {[%clk 0:02:31.5]} 13. dxc6 {[%clk 0:02:47.1]} 13... bxc6 {[%clk 0:02:31.1]}
14. Be3 {[%clk 0:02:47.2]} 14... Ne6 {[%clk 0:02:27.5]} 15. Nxe6 {[%clk
0:02:33.7]} 15... Bxe6 {[%clk 0:02:28.4]} 16. b3 {[%clk 0:02:31.5]} 16... Qd7
{[%clk 0:02:08.5]} 17. Na4 {[%clk 0:02:21.1]} 17... Rae8 {[%clk 0:02:03.9]} 18.
Qd2 {[%clk 0:02:20.9]} 18... d5 {[%clk 0:01:58.9]} 19. Nc5 {[%clk 0:02:18.5]}
19... Bxc5 {[%clk 0:01:38.5]} 20. Bxc5 {[%clk 0:02:19.4]} 20... Rf7 {[%clk
0:01:39]} 21. cxd5 {[%clk 0:02:13.5]} 21... Qxd5 {[%clk 0:01:24.4]} 22. Qxa5
{[%clk 0:02:13.4]} 22... Nd7 {[%clk 0:01:19.5]} 23. Bb4 {[%clk 0:02:06.8]} 23...
Qd4+ {[%clk 0:01:15.8]} 24. Kh1 {[%clk 0:02:06.5]} 24... c5 {[%clk 0:01:15.8]}
25. Bc3 {[%clk 0:01:57.4]} 25... Qf2 {[%clk 0:01:15.7]} 26. Bd3 {[%clk
0:01:57.4]} 26... Rfe7 {[%clk 0:01:06.9]} 27. Re2 {[%clk 0:01:52.4]} 27... Qh4
{[%clk 0:01:05.4]} 28. Rae1 {[%clk 0:01:49.6]} 28... Nf8 {[%clk 0:00:56.3]} 29.
Qxc5 {[%clk 0:01:46.3]} 29... Rc8 {[%clk 0:00:50.4]} 30. Qb4 {[%clk 0:01:40]}
30... Qxb4 {[%clk 0:00:46.1]} 31. Bxb4 {[%clk 0:01:40.9]} 31... Rd7 {[%clk
0:00:46.1]} 32. Ba6 {[%clk 0:01:31]} 32... Rc6 {[%clk 0:00:45.2]} 33. Bb5 {[%clk
0:01:30.6]} 1-0

[Event "*** Titled Tuesday Blitz"]
[Site "Chess.com"]
[Date "2020.04.28"]
[Round "2"]
[White "matein28"]
[Black "Batica1984"]
[Result "0-1"]
[WhiteElo "2526"]
[BlackElo "2801"]
[TimeControl "180+1"]
[EndTime "10:15:54 PDT"]
[Termination "Batica1984 won by resignation"]

1. d4 {[%clk 0:03:00.9]} 1... Nf6 {[%clk 0:02:59]} 2. Nf3 {[%clk 0:03:00.9]}
2... e6 {[%clk 0:02:58.3]} 3. c4 {[%clk 0:03:00.9]} 3... c5 {[%clk 0:02:58.2]}
4. e3 {[%clk 0:03:00.8]} 4... d6 {[%clk 0:02:53.2]} 5. Nc3 {[%clk 0:03:01.1]}
5... Nbd7 {[%clk 0:02:41.3]} 6. Be2 {[%clk 0:03:01.2]} 6... Be7 {[%clk
0:02:40.9]} 7. O-O {[%clk 0:03:01.4]} 7... O-O {[%clk 0:02:40.9]} 8. b3 {[%clk
0:03:02.1]} 8... b6 {[%clk 0:02:40.6]} 9. Bb2 {[%clk 0:03:02.6]} 9... Bb7 {[%clk
0:02:40.9]} 10. h3 {[%clk 0:03:02.8]} 10... a6 {[%clk 0:02:40.6]} 11. Rc1 {[%clk
0:03:03]} 11... Re8 {[%clk 0:02:35.6]} 12. Qc2 {[%clk 0:03:02.4]} 12... Rc8
{[%clk 0:02:30.2]} 13. Rfd1 {[%clk 0:03:02.5]} 13... Qc7 {[%clk 0:02:29.5]} 14.
Qb1 {[%clk 0:03:02.7]} 14... Nf8 {[%clk 0:02:17.3]} 15. a3 {[%clk 0:03:01]}
15... Ng6 {[%clk 0:02:17.2]} 16. b4 {[%clk 0:03:00]} 16... Bf8 {[%clk
0:02:07.6]} 17. Ng5 {[%clk 0:02:43.9]} 17... cxd4 {[%clk 0:02:02.7]} 18. exd4
{[%clk 0:02:42]} 18... Nf4 {[%clk 0:01:57.6]} 19. Bf1 {[%clk 0:02:37.1]} 19...
h6 {[%clk 0:01:37.8]} 20. Nge4 {[%clk 0:02:34.3]} 20... Nxe4 {[%clk 0:01:37.9]}
21. Nxe4 {[%clk 0:02:34.6]} 21... f5 {[%clk 0:01:37.9]} 22. Ng3 {[%clk
0:02:19.4]} 22... Qf7 {[%clk 0:01:37.4]} 23. Ne2 {[%clk 0:02:13.4]} 23... Ng6
{[%clk 0:01:23.5]} 24. f4 {[%clk 0:02:01.7]} 24... Nh4 {[%clk 0:01:12.3]} 25.
Qd3 {[%clk 0:01:58]} 25... Be7 {[%clk 0:00:53.5]} 26. Qg3 {[%clk 0:01:50.4]}
26... Bf6 {[%clk 0:00:53.3]} 27. Rd2 {[%clk 0:01:44.5]} 27... Kh7 {[%clk
0:00:48.8]} 28. d5 {[%clk 0:01:43.9]} 28... exd5 {[%clk 0:00:42.4]} 29. Be5
{[%clk 0:01:26.6]} 29... dxe5 {[%clk 0:00:40.9]} 30. fxe5 {[%clk 0:01:26.4]}
30... Rxe5 {[%clk 0:00:41]} 0-1

[Event "*** Titled Tuesday Blitz"]
[Site "Chess.com"]
[Date "2020.04.28"]
[Round "2"]
[White "LionTheLeon_06"]
[Black "Phenix2k"]
[Result "1-0"]
[WhiteElo "2638"]
[BlackElo "2298"]
[TimeControl "180+1"]
[EndTime "10:15:55 PDT"]
[Termination "LionTheLeon_06 won by resignation"]

1. d4 {[%clk 0:03:00.9]} 1... Nf6 {[%clk 0:02:58.6]} 2. c4 {[%clk 0:03:00.4]}
2... g6 {[%clk 0:02:58.8]} 3. Nc3 {[%clk 0:02:59.8]} 3... Bg7 {[%clk 0:02:59]}
4. e4 {[%clk 0:03:00.1]} 4... d6 {[%clk 0:02:58.9]} 5. h3 {[%clk 0:03:00.5]}
5... O-O {[%clk 0:02:58.2]} 6. Be3 {[%clk 0:03:01.1]} 6... b6 {[%clk 0:02:54.4]}
7. g3 {[%clk 0:02:56]} 7... c5 {[%clk 0:02:52]} 8. Nge2 {[%clk 0:02:53.1]} 8...
cxd4 {[%clk 0:02:48.3]} 9. Nxd4 {[%clk 0:02:52.8]} 9... Bb7 {[%clk 0:02:48.7]}
10. Bg2 {[%clk 0:02:52.2]} 10... a6 {[%clk 0:02:47.3]} 11. O-O {[%clk
0:02:51.9]} 11... Qc7 {[%clk 0:02:38.5]} 12. Rc1 {[%clk 0:02:46]} 12... Nbd7
{[%clk 0:02:37.8]} 13. b3 {[%clk 0:02:44.7]} 13... Rac8 {[%clk 0:02:37.7]} 14.
Qd2 {[%clk 0:02:43.1]} 14... Qb8 {[%clk 0:02:37.5]} 15. Rfe1 {[%clk 0:02:41.5]}
15... Rfe8 {[%clk 0:02:36.9]} 16. Qd3 {[%clk 0:02:36.7]} 16... Nc5 {[%clk
0:02:36.3]} 17. Qb1 {[%clk 0:02:36.7]} 17... Qa8 {[%clk 0:02:34]} 18. Nd5 {[%clk
0:02:28.6]} 18... Bxd5 {[%clk 0:02:24.1]} 19. exd5 {[%clk 0:02:25]} 19... b5
{[%clk 0:02:16]} 20. Nc6 {[%clk 0:02:22.7]} 20... bxc4 {[%clk 0:02:13.4]} 21.
bxc4 {[%clk 0:02:23.6]} 21... Nfd7 {[%clk 0:02:07.3]} 22. Bg5 {[%clk 0:02:19.2]}
22... f6 {[%clk 0:02:00.9]} 23. Be3 {[%clk 0:02:09.8]} 23... Ne5 {[%clk
0:01:51.9]} 24. Bxc5 {[%clk 0:01:54.2]} 24... Nxc6 {[%clk 0:01:51.6]} 25. dxc6
{[%clk 0:01:51]} 25... dxc5 {[%clk 0:01:51.4]} 26. Re6 {[%clk 0:01:49.1]} 26...
Rc7 {[%clk 0:01:46.9]} 27. Bd5 {[%clk 0:01:47.2]} 27... Kh8 {[%clk 0:01:42.4]}
28. Qb6 {[%clk 0:01:45.9]} 28... Qc8 {[%clk 0:01:37.2]} 29. Qxc5 {[%clk
0:01:43.4]} 29... f5 {[%clk 0:01:36.2]} 30. Rce1 {[%clk 0:01:41.7]} 30... Bf6
{[%clk 0:01:36.4]} 31. Qb6 {[%clk 0:01:38.9]} 31... Kg7 {[%clk 0:01:34.2]} 32.
Kg2 {[%clk 0:01:31.5]} 32... h5 {[%clk 0:01:28.9]} 33. Qe3 {[%clk 0:01:14.6]}
33... Kf8 {[%clk 0:01:19]} 34. Qh6+ {[%clk 0:01:12.9]} 34... Bg7 {[%clk
0:01:17.6]} 35. Qxg6 {[%clk 0:01:08.7]} 35... Rd8 {[%clk 0:01:16]} 36. Qxf5+
{[%clk 0:01:08.3]} 1-0

[Event "*** Titled Tuesday Blitz"]
[Site "Chess.com"]
[Date "2020.04.28"]
[Round "2"]
[White "PavlovDanila"]
[Black "KrakenBeast"]
[Result "1-0"]
[WhiteElo "2752"]
[BlackElo "2409"]
[TimeControl "180+1"]
[EndTime "10:16:06 PDT"]
[Termination "PavlovDanila won by resignation"]

1. e4 {[%clk 0:03:00.9]} 1... c5 {[%clk 0:02:59.6]} 2. Nf3 {[%clk 0:03:01]} 2...
d6 {[%clk 0:02:59.9]} 3. d4 {[%clk 0:03:01.4]} 3... cxd4 {[%clk 0:03:00.8]} 4.
Nxd4 {[%clk 0:03:00.1]} 4... Nf6 {[%clk 0:03:01.2]} 5. Nc3 {[%clk 0:02:58.6]}
5... a6 {[%clk 0:03:01.3]} 6. Be3 {[%clk 0:02:58.7]} 6... e5 {[%clk 0:03:01.4]}
7. Nb3 {[%clk 0:02:59.3]} 7... Be7 {[%clk 0:03:01.4]} 8. Qd2 {[%clk 0:02:59.9]}
8... Be6 {[%clk 0:03:01.8]} 9. O-O-O {[%clk 0:03:00.3]} 9... Nbd7 {[%clk
0:03:02.1]} 10. f4 {[%clk 0:02:59.8]} 10... b5 {[%clk 0:02:59.3]} 11. f5 {[%clk
0:02:58.4]} 11... Bc4 {[%clk 0:02:59.3]} 12. g4 {[%clk 0:02:58.9]} 12... Nxg4
{[%clk 0:02:56.9]} 13. Rg1 {[%clk 0:02:58.9]} 13... Nxe3 {[%clk 0:02:49.9]} 14.
Qxe3 {[%clk 0:02:59.8]} 14... h6 {[%clk 0:02:44.7]} 15. Kb1 {[%clk 0:02:57]}
15... Bg5 {[%clk 0:02:37.4]} 16. Qf3 {[%clk 0:02:53.7]} 16... Nb6 {[%clk
0:02:22]} 17. Na5 {[%clk 0:02:47.7]} 17... Qc7 {[%clk 0:02:18.4]} 18. Bxc4
{[%clk 0:02:40.7]} 18... bxc4 {[%clk 0:02:19.3]} 19. Nd5 {[%clk 0:02:37.8]}
19... Nxd5 {[%clk 0:02:14.7]} 20. Rxd5 {[%clk 0:02:38.7]} 20... Rb8 {[%clk
0:02:12.9]} 21. Qc3 {[%clk 0:02:36.4]} 21... Rb5 {[%clk 0:02:07]} 22. Nxc4
{[%clk 0:02:09.8]} 22... Rxd5 {[%clk 0:01:56.5]} 23. exd5 {[%clk 0:02:10.7]}
23... Qc5 {[%clk 0:01:54]} 24. Rf1 {[%clk 0:01:55.8]} 24... O-O {[%clk
0:01:53.3]} 25. Qd3 {[%clk 0:01:54.9]} 25... a5 {[%clk 0:01:46]} 26. a4 {[%clk
0:01:52.6]} 26... Rb8 {[%clk 0:01:44.8]} 27. b3 {[%clk 0:01:52.7]} 27... Rb4
{[%clk 0:01:36.4]} 28. Ka2 {[%clk 0:01:50.6]} 28... Bf6 {[%clk 0:01:29.8]} 29.
c3 {[%clk 0:01:36.7]} 29... Rb8 {[%clk 0:01:23.3]} 30. Nd2 {[%clk 0:01:35.1]}
30... Rc8 {[%clk 0:01:11.2]} 31. Ne4 {[%clk 0:01:33.1]} 31... Qc7 {[%clk
0:01:11.8]} 32. Rg1 {[%clk 0:01:14.4]} 32... Kh7 {[%clk 0:01:03.9]} 33. Nxf6+
{[%clk 0:01:10]} 33... gxf6 {[%clk 0:01:03.8]} 34. Qg3 {[%clk 0:01:10.5]} 1-0

[Event "*** Titled Tuesday Blitz"]
[Site "Chess.com"]
[Date "2020.04.28"]
[Round "2"]
[White "Skatchkov_V"]
[Black "DDTerziev04"]
[Result "0-1"]
[WhiteElo "2553"]
[BlackElo "2316"]
[TimeControl "180+1"]
[EndTime "10:16:11 PDT"]
[Termination "DDTerziev04 won by resignation"]

1. d4 {[%clk 0:03:00.7]} 1... d5 {[%clk 0:02:59.4]} 2. c4 {[%clk 0:03:00.5]}
2... dxc4 {[%clk 0:02:59.9]} 3. e4 {[%clk 0:03:00.5]} 3... Nf6 {[%clk
0:02:59.7]} 4. e5 {[%clk 0:03:00.4]} 4... Nd5 {[%clk 0:03:00.2]} 5. Bxc4 {[%clk
0:03:00.8]} 5... Nb6 {[%clk 0:03:00.6]} 6. Bb3 {[%clk 0:03:01.2]} 6... Nc6
{[%clk 0:03:00.8]} 7. Ne2 {[%clk 0:03:01.1]} 7... Bf5 {[%clk 0:02:58.4]} 8. O-O
{[%clk 0:03:00.3]} 8... e6 {[%clk 0:02:57.1]} 9. Nbc3 {[%clk 0:02:58.9]} 9...
Be7 {[%clk 0:02:54.4]} 10. Be3 {[%clk 0:02:39.1]} 10... Nb4 {[%clk 0:02:51.4]}
11. Ng3 {[%clk 0:02:26.6]} 11... Bg6 {[%clk 0:02:50.9]} 12. Nce4 {[%clk
0:02:22.6]} 12... N4d5 {[%clk 0:02:49.6]} 13. Bd2 {[%clk 0:02:06]} 13... O-O
{[%clk 0:02:39.4]} 14. Rc1 {[%clk 0:02:05.8]} 14... c6 {[%clk 0:02:37.6]} 15.
Kh1 {[%clk 0:01:56.4]} 15... f5 {[%clk 0:02:35.8]} 16. exf6 {[%clk 0:01:47.2]}
16... Bxf6 {[%clk 0:02:36.1]} 17. Nxf6+ {[%clk 0:01:15.4]} 17... Qxf6 {[%clk
0:02:34.5]} 18. Qg4 {[%clk 0:01:15.4]} 18... Bf5 {[%clk 0:02:23.3]} 19. Nxf5
{[%clk 0:00:55]} 19... exf5 {[%clk 0:02:22.8]} 20. Qg3 {[%clk 0:00:54.4]} 20...
f4 {[%clk 0:02:20.5]} 21. Qd3 {[%clk 0:00:52.3]} 21... f3 {[%clk 0:02:12.3]} 22.
Qxf3 {[%clk 0:00:45.7]} 22... Qxf3 {[%clk 0:02:11.7]} 23. gxf3 {[%clk
0:00:46.1]} 23... Rxf3 {[%clk 0:02:12.3]} 24. Rce1 {[%clk 0:00:40.2]} 24... Raf8
{[%clk 0:02:06.4]} 25. Kg2 {[%clk 0:00:37.5]} 25... R3f6 {[%clk 0:02:00.8]} 26.
Re7 {[%clk 0:00:30.1]} 26... R6f7 {[%clk 0:01:43.9]} 27. Rxf7 {[%clk 0:00:30]}
27... Rxf7 {[%clk 0:01:44.8]} 28. Re1 {[%clk 0:00:30.4]} 28... Rd7 {[%clk
0:01:40]} 29. Re8+ {[%clk 0:00:23.6]} 29... Kf7 {[%clk 0:01:39.4]} 30. Ra8
{[%clk 0:00:23.6]} 30... Nxa8 {[%clk 0:01:38]} 0-1

[Event "*** Titled Tuesday Blitz"]
[Site "Chess.com"]
[Date "2020.04.28"]
[Round "2"]
[White "Andro2"]
[Black "hongnhung1234"]
[Result "1-0"]
[WhiteElo "2436"]
[BlackElo "2195"]
[TimeControl "180+1"]
[EndTime "10:16:11 PDT"]
[Termination "Andro2 won on time"]

1. e4 {[%clk 0:03:00.9]} 1... c5 {[%clk 0:02:59.6]} 2. Nc3 {[%clk 0:03:00]} 2...
e6 {[%clk 0:02:59]} 3. g3 {[%clk 0:03:00.5]} 3... Nc6 {[%clk 0:02:58.6]} 4. Bg2
{[%clk 0:02:59.6]} 4... Nge7 {[%clk 0:02:58.9]} 5. Nf3 {[%clk 0:02:55.3]} 5...
g6 {[%clk 0:02:58.8]} 6. d4 {[%clk 0:02:54.1]} 6... cxd4 {[%clk 0:02:58.2]} 7.
Nxd4 {[%clk 0:02:54.5]} 7... Bg7 {[%clk 0:02:58.3]} 8. Be3 {[%clk 0:02:52.8]}
8... O-O {[%clk 0:02:55.9]} 9. O-O {[%clk 0:02:52.5]} 9... a6 {[%clk 0:02:54.9]}
10. a4 {[%clk 0:02:48.9]} 10... Qc7 {[%clk 0:02:50.4]} 11. Nb3 {[%clk
0:02:45.7]} 11... b6 {[%clk 0:02:47.5]} 12. Bf4 {[%clk 0:02:40.6]} 12... Ne5
{[%clk 0:02:30.7]} 13. Qe2 {[%clk 0:02:38.1]} 13... Bb7 {[%clk 0:02:28.1]} 14.
Rfd1 {[%clk 0:02:37.7]} 14... Rfd8 {[%clk 0:02:25.4]} 15. Bg5 {[%clk 0:02:20]}
15... d6 {[%clk 0:02:20.3]} 16. Nd2 {[%clk 0:01:48.5]} 16... Rac8 {[%clk
0:02:11.7]} 17. h4 {[%clk 0:01:42.7]} 17... Rd7 {[%clk 0:01:57.7]} 18. Ra3
{[%clk 0:01:25.3]} 1-0